[Event "FIDE WCCC Open-12 2024"]
[Site "Montesilvano"]
[Date "2024.11.19"]
[Round "5.61"]
[White "Mintz, Nathan"]
[Black "Mamarasulov, Husan"]
[Result "1/2-1/2"]
[ECO "A37"]
[WhiteElo "1633"]
[BlackElo "1407"]
[Annotator "NA RC"]
[PlyCount "190"]
[EventDate "2024.11.18"]
[EventType "swiss"]
[EventCountry "ITA"]
[SourceTitle "playchess.com"]
[Source "ChessBase"]
[SourceQuality "1"]
[TimeControl "5400+30"]

1. c4 {[%emt 0:00:05]} c5 {[%emt 0:00:06]} 2. Nc3 {[%emt 0:00:06]} Nc6 {[%emt 0:00:16]} 3. g3 {[%emt 0:00:10]} g6 {[%emt 0:00:12]} 4. Bg2 {[%emt 0:00:07]} Bg7 {[%emt 0:00:16]} 5. Nf3 {[%emt 0:00:16]} e5 {[%emt 0:00:34]} 6. O-O {[%emt 0:00:17]} Nge7 {[%emt 0:00:33]} 7. d3 {[%emt 0:00:24]} d6 {[%emt 0:00:08]} 8. Bg5 {[%emt 0:01:02]} Be6 {[%emt 0:00:41]} 9. Qd2 {[%emt 0:01:18]} h6 {[%emt 0:00:20]} 10. Bxe7 {[%emt 0:00:55]} Nxe7 {[%emt 0:01:08]} 11. Ne1 {[%emt 0:01:11]} Qd7 {[%emt 0:00:36]} 12. Nc2 {[%emt 0:02:57]} O-O {[%emt 0:01:01]} 13. Ne3 {[%emt 0:01:51]} Bh3 {[%emt 0:03:20]} 14. Ned5 {[%emt 0:02:47]} Nxd5 {[%emt 0:00:49]} 15. Nxd5 {[%emt 0:00:40]} Bxg2 {[%emt 0:00:36]} 16. Kxg2 {[%emt 0:00:23]} f5 {[%emt 0:01:56]} 17. a3 {[%emt 0:12:50]} f4 {[%emt 0:03:05]} 18. h3 {[%emt 0:04:20]} b5 {[%emt 0:02:31]} 19. Rab1 {[%emt 0:06:52]} Qf7 {[%emt 0:09:41]} 20. gxf4 {[%emt 0:11:02]} exf4 {[%emt 0:01:17]} 21. f3 {[%emt 0:02:04]} Kh7 {[%emt 0:06:31]} 22. Kh2 {[%emt 0:04:41]} Rae8 {[%emt 0:02:20]} 23. b4 {[%emt 0:04:17]} bxc4 {[%emt 0:04:46]} 24. dxc4 {[%emt 0:00:39]} Bd4 {[%emt 0:08:34]} 25. bxc5 {[%emt 0:04:28]} dxc5 {[%emt 0:01:19]} 26. Rb3 {[%emt 0:02:24]} Re3 {[%emt 0:05:31]} 27. Nxe3 {[%emt 0:07:13]} fxe3 {[%emt 0:00:30]} 28. Qe1 {[%emt 0:04:00]} Be5+ {[%emt 0:00:16]} 29. Kg2 {[%emt 0:00:58]} Qf4 {[%emt 0:00:22]} 30. Rb7+ {[%emt 0:02:01]} Kg8 {[%emt 0:00:24]} 31. Rh1 {[%emt 0:00:44]} Qg5+ {[%emt 0:06:41]} 32. Kf1 {[%emt 0:00:55]} Qh5 {[%emt 0:04:00]} 33. h4 {[%emt 0:03:12]} Rxf3+ {[%emt 0:00:23]} 34. exf3 {[%emt 0:00:36]} Qxf3+ {[%emt 0:00:11]} 35. Kg1 {[%emt 0:00:17]} Qxb7 {[%emt 0:00:12]} 36. Rh3 {[%emt 0:04:46]} Qe4 {[%emt 0:03:44]} 37. Qe2 {[%emt 0:02:42]} h5 {[%emt 0:01:32]} 38. Kf1 {[%emt 0:01:54]} Bd4 {[%emt 0:03:44]} 39. Rg3 {[%emt 0:03:40]} Kf7 {[%emt 0:06:34]} 40. Qf3+ {[%emt 0:01:27]} Qxf3+ {[%emt 0:00:13]} 41. Rxf3+ {[%emt 0:00:07]} Ke6 {[%emt 0:00:14]} 42. Ke2 {[%emt 0:00:31]} Ke5 {[%emt 0:00:42]} 43. a4 {[%emt 0:00:54]} a5 {[%emt 0:00:16]} 44. Rf8 {[%emt 0:00:50]} Ke4 {[%emt 0:01:19]} 45. Rf7 {[%emt 0:00:37]} Bc3 {[%emt 0:03:29]} 46. Rd7 {[%emt 0:02:15]} Kf4 {[%emt 0:02:41]} 47. Rd5 {[%emt 0:01:06]} Bf6 {[%emt 0:02:42]} 48. Rxc5 {[%emt 0:01:06]} Bxh4 {[%emt 0:00:21]} 49. Rxa5 {[%emt 0:00:50]} g5 {[%emt 0:02:51]} 50. Rd5 {[%emt 0:01:39]} g4 {[%emt 0:02:30]} 51. Rxh5 {[%emt 0:01:15]} Bd8 {[%emt 0:01:11]} 52. Rh1 {[%emt 0:00:31]} g3 {[%emt 0:00:16]} 53. Rg1 {[%emt 0:00:15]} Bb6 {[%emt 0:00:18]} 54. Rg2 {[%emt 0:00:36]} Kg4 {[%emt 0:01:25]} 55. Rg1 {[%emt 0:00:48]} Kf4 {[%emt 0:01:20]} 56. Rg2 {[%emt 0:00:23]} Kg4 {[%emt 0:00:19]} 57. a5 {[%emt 0:00:29]} Bxa5 {[%emt 0:01:56]} 58. Kxe3 {[%emt 0:00:15]} Bb6+ {[%emt 0:01:05]} 59. Ke2 {[%emt 0:00:28]} Bc5 {[%emt 0:00:35]} 60. Kf1 {[%emt 0:00:44]} Kf3 {[%emt 0:01:48]} 61. Rc2 {[%emt 0:00:34]} Ke3 {[%emt 0:01:44]} 62. Kg2 {[%emt 0:00:17]} Kd3 {[%emt 0:00:14]} 63. Rc1 {[%emt 0:00:35]} Ba3 {[%emt 0:00:38]} 64. Ra1 {[%emt 0:00:32]} Bc5 {[%emt 0:00:06]} 65. Kxg3 {[%emt 0:00:45]} Kxc4 {[%emt 0:00:09]} 66. Rc1+ {[%emt 0:00:13]} Kb5 {[%emt 0:00:07]} 67. Kf3 {[%emt 0:00:10]} Bd6 {[%emt 0:00:20]} 68. Ke4 {[%emt 0:00:15]} Kb6 {[%emt 0:00:50]} 69. Kd5 {[%emt 0:00:19]} Bb8 {[%emt 0:00:22]} 70. Ke6 {[%emt 0:00:26]} Kb7 {[%emt 0:00:14]} 71. Kd7 {[%emt 0:00:13]} Ba7 {[%emt 0:01:37]} 72. Rb1+ {[%emt 0:00:55]} Ka8 {[%emt 0:00:34]} 73. Rh1 {[%emt 0:01:13]} Kb7 {[%emt 0:00:17]} 74. Rh7 {[%emt 0:00:27]} Bb6 {[%emt 0:01:02]} 75. Kd6+ {[%emt 0:00:20]} Ka8 {[%emt 0:00:46]} 76. Kc6 {[%emt 0:00:21]} Ba7 {[%emt 0:00:17]} 77. Rh8+ {[%emt 0:01:12]} Bb8 {[%emt 0:00:16]} 78. Kb5 {[%emt 0:00:21]} Kb7 {[%emt 0:00:24]} 79. Rh7+ {[%emt 0:00:16]} Ka8 {[%emt 0:00:28]} 80. Ka6 {[%emt 0:00:49]} Bd6 {[%emt 0:01:19]} 81. Kb5 {[%emt 0:00:22]} Bb8 {[%emt 0:00:19]} 82. Kc6 {[%emt 0:00:21]} Ba7 {[%emt 0:00:06]} 83. Rh1 {[%emt 0:00:26]} Bb8 {[%emt 0:00:30]} 84. Kb6 {[%emt 0:00:24]} Ba7+ {[%emt 0:00:13]} 85. Ka6 {[%emt 0:00:16]} Bb8 {[%emt 0:00:05]} 86. Rb1 {[%emt 0:00:30]} Ba7 {[%emt 0:00:27]} 87. Rb5 {[%emt 0:00:23]} Bb8 {[%emt 0:00:13]} 88. Kb6 {[%emt 0:00:24]} Ba7+ {[%emt 0:00:22]} 89. Kc7 {[%emt 0:00:16]} Bd4 {[%emt 0:01:19]} 90. Rb8+ {[%emt 0:00:21]} Ka7 {[%emt 0:00:09]} 91. Rb5 {[%emt 0:00:53]} Bc3 {[%emt 0:00:14]} 92. Rb3 {[%emt 0:00:32]} Be5+ {[%emt 0:00:13]} 93. Kc6 {[%emt 0:00:10]} Ka8 {[%emt 0:00:18]} 94. Kd5 {[%emt 0:00:25]} Bb8 {[%emt 0:00:14]} 95. Kc6 {[%emt 0:01:11]} Ba7 {[%emt 0:00:27]} 1/2-1/2

[Event "FIDE WCCC Open-12 2024"]
[Site "Montesilvano"]
[Date "2024.11.19"]
[Round "5.67"]
[White "Williams, Henry"]
[Black "Zutautas, Mantas"]
[Result "0-1"]
[ECO "D02"]
[WhiteElo "1695"]
[BlackElo "1540"]
[Annotator "NA RC"]
[PlyCount "96"]
[EventDate "2024.11.18"]
[EventType "swiss"]
[EventCountry "ITA"]
[SourceTitle "playchess.com"]
[Source "ChessBase"]
[SourceQuality "1"]
[TimeControl "5400+30"]

1. d4 {[%emt 0:00:04]} d5 {[%emt 0:00:04]} 2. Bf4 {[%emt 0:00:04]} Nf6 {[%emt 0:00:19]} 3. e3 {[%emt 0:00:08]} e6 {[%emt 0:00:08]} 4. Nf3 {[%emt 0:00:14]} c5 {[%emt 0:00:11]} 5. c3 {[%emt 0:00:11]} Nc6 {[%emt 0:00:09]} 6. Nbd2 {[%emt 0:00:33]} Bd6 {[%emt 0:00:45]} 7. Bg5 {[%emt 0:00:08]} O-O {[%emt 0:00:51]} 8. Bd3 {[%emt 0:00:55]} Qb6 {[%emt 0:00:52]} 9. Qc2 {[%emt 0:00:36]} c4 {[%emt 0:01:29]} 10. Be2 {[%emt 0:00:30]} Be7 {[%emt 0:00:40]} 11. O-O {[%emt 0:00:57]} h6 {[%emt 0:01:29]} 12. Bh4 {[%emt 0:00:34]} Bd7 {[%emt 0:00:50]} 13. h3 {[%emt 0:00:56]} Rfe8 {[%emt 0:01:12]} 14. Rfe1 {[%emt 0:00:34]} Qa5 {[%emt 0:03:21]} 15. b4 {[%emt 0:06:29]} cxb3 {[%emt 0:01:43]} 16. Nxb3 {[%emt 1:25:37]} Qc7 {[%emt 0:03:20]} 17. Bg3 {[%emt 0:00:30]} Bd6 18. Bxd6 {[%emt 0:00:00]} Qxd6 {[%emt 0:00:35]} 19. Nc5 {[%emt 0:00:00]} Na5 {[%emt 0:05:26]} 20. Ne5 {[%emt 0:00:00]} b6 {[%emt 0:03:10]} 21. Ncxd7 {[%emt 0:00:00]} Nxd7 {[%emt 0:00:11]} 22. Nxd7 {[%emt 0:00:00]} Qxd7 {[%emt 0:00:24]} 23. a4 {[%emt 0:00:00]} Rec8 {[%emt 0:01:10]} 24. Rec1 {[%emt 0:00:00]} Nc4 {[%emt 0:00:20]} 25. Bxc4 {[%emt 0:00:00]} Rxc4 {[%emt 0:00:32]} 26. Kh2 {[%emt 0:00:00]} Rac8 {[%emt 0:00:12]} 27. Ra3 {[%emt 0:00:00]} R8c7 {[%emt 0:02:46]} 28. g3 {[%emt 0:00:00]} R7c6 {[%emt 0:05:31]} 29. h4 {[%emt 0:00:00]} Qc7 {[%emt 0:00:33]} 30. Qd2 {[%emt 0:00:00]} a6 {[%emt 0:01:19]} 31. f4 {[%emt 0:00:00]} b5 {[%emt 0:00:37]} 32. axb5 {[%emt 0:00:00]} axb5 {[%emt 0:00:27]} 33. Qb2 {[%emt 0:00:00]} b4 {[%emt 0:00:46]} 34. Rb3 {[%emt 0:00:00]} Rxc3 {[%emt 0:00:26]} 35. Rcxc3 {[%emt 0:00:00]} Rxc3 {[%emt 0:00:11]} 36. Kh3 {[%emt 0:00:00]} Rxb3 {[%emt 0:00:25]} 37. Qxb3 {[%emt 0:00:00]} Qc3 {[%emt 0:00:06]} 38. Qxc3 {[%emt 0:00:00]} bxc3 {[%emt 0:00:05]} 39. Kg2 {[%emt 0:00:00]} c2 {[%emt 0:00:08]} 40. Kf2 {[%emt 0:00:00]} c1=Q {[%emt 0:00:12]} 41. Kf3 {[%emt 0:00:00]} f5 {[%emt 0:00:34]} 42. Kg2 {[%emt 0:00:00]} Qxe3 {[%emt 0:00:05]} 43. Kh3 {[%emt 0:00:00]} Qg1 {[%emt 0:00:44]} 44. h5 {[%emt 0:00:00]} Kh7 {[%emt 0:01:40]} 45. g4 {[%emt 0:00:00]} fxg4+ {[%emt 0:01:14]} 46. Kh4 {[%emt 0:14:30]} g3 {[%emt 1:06:18]} 47. f5 {[%emt 0:00:00]} exf5 {[%emt 0:00:00]} 48. Kh3 {[%emt 0:00:00]} Qh2# {[%emt 0:00:00]} 0-1

[Event "FIDE WCCC Open-12 2024"]
[Site "Montesilvano"]
[Date "2024.11.19"]
[Round "5.70"]
[White "Boiko, Nazar"]
[Black "Anuzis, Finas"]
[Result "1-0"]
[ECO "D20"]
[WhiteElo "1614"]
[BlackElo "1614"]
[Annotator "NA RC"]
[PlyCount "122"]
[EventDate "2024.11.18"]
[EventType "swiss"]
[EventCountry "ITA"]
[SourceTitle "playchess.com"]
[Source "ChessBase"]
[SourceQuality "1"]
[TimeControl "5400+30"]

1. e4 {[%emt 0:00:01]} e6 {[%emt 0:00:00]} 2. d4 {[%emt 0:00:03]} d5 {[%emt 0:00:07]} 3. exd5 {[%emt 0:00:02]} exd5 {[%emt 0:00:25]} 4. c4 {[%emt 0:00:04]} Nf6 {[%emt 0:00:39]} 5. Nc3 {[%emt 0:00:16]} Bb4 {[%emt 0:00:41]} 6. Nf3 {[%emt 0:00:19]} O-O {[%emt 0:00:40]} 7. Bd3 {[%emt 0:02:16]} dxc4 {[%emt 0:00:46]} 8. Bxc4 {[%emt 0:00:06]} c6 {[%emt 0:10:36]} 9. O-O {[%emt 0:01:41]} Bd6 {[%emt 0:04:46]} 10. Bg5 {[%emt 0:09:47]} Nbd7 {[%emt 0:10:27]} 11. Re1 {[%emt 0:09:54]} Qc7 {[%emt 0:08:48]} 12. Rc1 {[%emt 0:08:48]} Bf4 {[%emt 0:08:30]} 13. Bxf4 {[%emt 0:01:23]} Qxf4 {[%emt 0:00:28]} 14. Qd2 {[%emt 0:20:18]} Qxd2 {[%emt 0:01:54]} 15. Nxd2 {[%emt 0:01:24]} Nb6 {[%emt 0:04:54]} 16. Bb3 {[%emt 0:00:21]} Bd7 {[%emt 0:05:02]} 17. Nde4 {[%emt 0:04:36]} Nxe4 {[%emt 0:06:52]} 18. Nxe4 {[%emt 0:00:45]} Rad8 {[%emt 0:00:51]} 19. Nc5 {[%emt 0:05:32]} Bc8 {[%emt 0:01:16]} 20. Re7 {[%emt 0:09:45]} Nd7 {[%emt 0:03:44]} 21. Nxd7 {[%emt 0:01:13]} Rxd7 {[%emt 0:00:46]} 22. Rce1 {[%emt 0:02:05]} g6 {[%emt 0:05:01]} 23. Rxd7 {[%emt 0:02:03]} Bxd7 {[%emt 0:00:24]} 24. Re7 {[%emt 0:00:07]} Bc8 {[%emt 0:00:20]} 25. f3 {[%emt 0:06:29]} a5 {[%emt 0:07:16]} 26. g4 {[%emt 0:04:19]} h6 {[%emt 0:03:12]} 27. h4 {[%emt 0:00:48]} Kg7 {[%emt 0:02:15]} 28. g5 {[%emt 0:00:29]} hxg5 {[%emt 0:01:13]} 29. hxg5 {[%emt 0:00:01]} b5 {[%emt 0:02:11]} 30. a3 {[%emt 0:00:56]} Kh7 {[%emt 0:04:40]} 31. Bxf7 {[%emt 0:02:38]} Kh8 {[%emt 0:01:11]} 32. Bxg6 {[%emt 0:00:35]} Rf4 {[%emt 0:06:35]} 33. Re5 Rxf3 {[%emt 0:00:00]} 34. Re8+ {[%emt 0:01:13]} Kg7 {[%emt 0:00:00]} 35. Rxc8 {[%emt 0:02:03]} Kxg6 {[%emt 0:00:00]} 36. Rxc6+ {[%emt 0:00:05]} Kxg5 {[%emt 0:00:00]} 37. Rc5+ {[%emt 0:01:28]} Kf4 {[%emt 0:00:00]} 38. Rxb5 {[%emt 0:01:48]} Ke4 {[%emt 0:00:00]} 39. d5 {[%emt 0:02:29]} Ke5 {[%emt 0:00:00]} 40. Kg2 {[%emt 0:01:03]} Rd3 {[%emt 0:00:00]} 41. Kf2 {[%emt 0:00:38]} Rxd5 {[%emt 0:00:00]} 42. Rxd5+ {[%emt 0:00:12]} Kxd5 {[%emt 0:00:00]} 43. Ke2 {[%emt 0:00:09]} Kc4 {[%emt 0:00:00]} 44. Kd2 {[%emt 0:00:09]} Kb3 {[%emt 0:00:00]} 45. Kc1 {[%emt 0:00:11]} a4 {[%emt 0:00:03]} 46. Kb1 {[%emt 0:00:08]} Kc4 {[%emt 0:00:20]} 47. Kc2 {[%emt 0:02:09]} Kb5 {[%emt 0:00:16]} 48. Kd3 {[%emt 0:00:20]} Kc5 {[%emt 0:00:44]} 49. Kc3 {[%emt 0:00:09]} Kb5 {[%emt 0:00:44]} 50. Kd4 {[%emt 0:00:12]} Kb6 {[%emt 0:00:50]} 51. Kc4 {[%emt 0:00:11]} Ka5 {[%emt 0:00:29]} 52. Kc5 {[%emt 0:00:11]} Ka6 {[%emt 0:00:15]} 53. Kb4 {[%emt 0:00:03]} Kb6 {[%emt 0:00:15]} 54. Kxa4 {[%emt 0:00:06]} Ka6 {[%emt 0:00:23]} 55. Kb4 {[%emt 0:00:10]} Kb6 {[%emt 0:00:25]} 56. a4 {[%emt 0:00:08]} Kc6 {[%emt 0:00:25]} 57. Kc4 {[%emt 0:00:07]} Kb6 {[%emt 0:00:25]} 58. b4 {[%emt 0:00:08]} Ka6 {[%emt 0:00:11]} 59. Kc5 {[%emt 0:00:09]} Kb7 {[%emt 0:00:16]} 60. b5 {[%emt 0:00:12]} Ka7 {[%emt 0:00:23]} 61. a5 {[%emt 0:00:09]} Kb7 {[%emt 0:00:07]} 1-0